[Event "Early-Titled-Tuesday-Blitz-October-17-2023"]
[Site "Chess.com"]
[Date "2023.10.17"]
[Round "2"]
[White "Tsyhanchuk_Stanislav"]
[Black "Deadmold"]
[Result "1-0"]
[WhiteElo "2458"]
[BlackElo "2193"]
[TimeControl "180+1"]
[EndTime "8:20:14 PDT"]
[Termination "Tsyhanchuk_Stanislav won on time"]

1. e4 {[%clk 0:03:00.9]} 1... Nf6 {[%clk 0:02:59.5]} 2. e5 {[%clk 0:02:59.7]}
2... Nd5 {[%clk 0:02:59.8]} 3. c4 {[%clk 0:02:58.5]} 3... Nb6 {[%clk 0:03:00]}
4. d4 {[%clk 0:02:58.6]} 4... d6 {[%clk 0:03:00.1]} 5. f4 {[%clk 0:02:58.6]}
5... dxe5 {[%clk 0:03:00.2]} 6. fxe5 {[%clk 0:02:57.6]} 6... c5 {[%clk
0:03:00.8]} 7. d5 {[%clk 0:02:51.1]} 7... e6 {[%clk 0:03:01.2]} 8. Nc3 {[%clk
0:02:43.5]} 8... exd5 {[%clk 0:03:01.5]} 9. cxd5 {[%clk 0:02:44.4]} 9... Qh4+
{[%clk 0:03:01.5]} 10. g3 {[%clk 0:02:38.2]} 10... Qd4 {[%clk 0:03:02]} 11. Bf4
{[%clk 0:01:47.4]} 11... g5 {[%clk 0:03:01]} 12. Qxd4 {[%clk 0:01:29.7]} 12...
cxd4 {[%clk 0:03:00.1]} 13. Nb5 {[%clk 0:01:27.3]} 13... gxf4 {[%clk 0:02:58.4]}
14. Nc7+ {[%clk 0:01:27.2]} 14... Kd8 {[%clk 0:02:56.5]} 15. Nxa8 {[%clk
0:01:27]} 15... Nxa8 {[%clk 0:02:56.4]} 16. gxf4 {[%clk 0:01:26.4]} 16... Bh6
{[%clk 0:02:37.4]} 17. Nf3 {[%clk 0:00:15.5]} 17... Bxf4 {[%clk 0:02:35.3]} 18.
h3 {[%clk 0:00:15.2]} 18... Nd7 {[%clk 0:02:16.5]} 19. e6 {[%clk 0:00:09.2]}
19... fxe6 {[%clk 0:02:15.6]} 20. dxe6 {[%clk 0:00:10.1]} 20... Nc5 {[%clk
0:02:12.3]} 21. Nxd4 {[%clk 0:00:08.2]} 21... Nxe6 {[%clk 0:02:09.2]} 22. Rd1
{[%clk 0:00:07.7]} 22... Kc7 {[%clk 0:02:05.3]} 23. Nb5+ {[%clk 0:00:05.8]}
23... Kb6 {[%clk 0:01:56.2]} 24. Bc4 {[%clk 0:00:05.6]} 24... Nac7 {[%clk
0:01:34.3]} 25. Nc3 {[%clk 0:00:05.5]} 25... Bg3+ {[%clk 0:01:23.4]} 26. Ke2
{[%clk 0:00:04.5]} 26... Re8 {[%clk 0:01:22.7]} 27. Kf3 {[%clk 0:00:04.8]} 27...
Be5 {[%clk 0:01:16.2]} 28. a4 {[%clk 0:00:02.9]} 28... Nd4+ {[%clk 0:01:09.1]}
29. Kg2 {[%clk 0:00:02.2]} 29... Be6 {[%clk 0:01:05]} 30. a5+ {[%clk 0:00:02.3]}
30... Kxa5 {[%clk 0:00:59.1]} 31. Ra1+ {[%clk 0:00:02.9]} 31... Kb6 {[%clk
0:00:49.5]} 32. Bxe6 {[%clk 0:00:03.2]} 32... Ncxe6 {[%clk 0:00:48.8]} 33. Rhe1
{[%clk 0:00:03.3]} 33... Nf4+ {[%clk 0:00:48.1]} 34. Kf1 {[%clk 0:00:03.8]}
34... Bd6 {[%clk 0:00:37]} 35. Rxe8 {[%clk 0:00:03.4]} 35... Nxh3 {[%clk
0:00:34.1]} 36. Kg2 {[%clk 0:00:03.4]} 36... Nf4+ {[%clk 0:00:33.5]} 37. Kf1
{[%clk 0:00:03.6]} 37... Nd3 {[%clk 0:00:33.2]} 38. Nd5+ {[%clk 0:00:03.9]}
38... Kc5 {[%clk 0:00:32]} 39. Ne3 {[%clk 0:00:03.9]} 39... Nxb2 {[%clk
0:00:31.5]} 40. Rc1+ {[%clk 0:00:03.9]} 40... Kb4 {[%clk 0:00:28.6]} 41. Nc2+
{[%clk 0:00:03]} 41... Nxc2 {[%clk 0:00:24]} 42. Rxc2 {[%clk 0:00:03.9]} 42...
Na4 {[%clk 0:00:22.6]} 43. Re4+ {[%clk 0:00:02.8]} 43... Kb3 {[%clk 0:00:20.9]}
44. Rd2 {[%clk 0:00:03.3]} 44... Bb4 {[%clk 0:00:19.4]} 45. Rd3+ {[%clk
0:00:03]} 45... Nc3 {[%clk 0:00:16.6]} 46. Rh4 {[%clk 0:00:02.4]} 46... a5
{[%clk 0:00:15.9]} 47. Rxh7 {[%clk 0:00:02.4]} 47... a4 {[%clk 0:00:16.5]} 48.
Rxb7 {[%clk 0:00:03]} 48... a3 {[%clk 0:00:17.1]} 49. Ra7 {[%clk 0:00:03.6]}
49... a2 {[%clk 0:00:16.9]} 50. Rg3 {[%clk 0:00:02.7]} 50... Kb2 {[%clk
0:00:08.5]} 51. Rg4 {[%clk 0:00:03]} 51... a1=Q+ {[%clk 0:00:04.3]} 52. Rxa1
{[%clk 0:00:03.9]} 52... Kxa1 {[%clk 0:00:04.7]} 53. Rxb4 {[%clk 0:00:04.3]}
53... Ka2 {[%clk 0:00:04.7]} 54. Ke1 {[%clk 0:00:03.5]} 54... Ka3 {[%clk
0:00:03]} 55. Rb8 {[%clk 0:00:04.1]} 55... Na4 {[%clk 0:00:02.3]} 56. Kd2 {[%clk
0:00:04.2]} 56... Nb2 {[%clk 0:00:02.4]} 57. Kc3 {[%clk 0:00:04.2]} 57... Na4+
{[%clk 0:00:02.7]} 58. Kc4 {[%clk 0:00:04.6]} 58... Nb2+ {[%clk 0:00:03.1]} 59.
Kc3 {[%clk 0:00:05.1]} 59... Na4+ {[%clk 0:00:03.2]} 60. Kc2 {[%clk 0:00:05.8]}
60... Nc5 {[%clk 0:00:01.7]} 61. Rb5 {[%clk 0:00:06.3]} 1-0

[Event "Early-Titled-Tuesday-Blitz-October-17-2023"]
[Site "Chess.com"]
[Date "2023.10.17"]
[Round "2"]
[White "Firouzja2003"]
[Black "Ramosha"]
[Result "1-0"]
[WhiteElo "3075"]
[BlackElo "2626"]
[TimeControl "180+1"]
[EndTime "8:20:18 PDT"]
[Termination "Firouzja2003 won by resignation"]

1. d4 {[%clk 0:03:00.9]} 1... Nf6 {[%clk 0:02:59.8]} 2. c4 {[%clk 0:03:01.3]}
2... e6 {[%clk 0:03:00.2]} 3. a3 {[%clk 0:03:01.5]} 3... d5 {[%clk 0:02:57.8]}
4. cxd5 {[%clk 0:03:02.4]} 4... exd5 {[%clk 0:02:57.6]} 5. Nc3 {[%clk
0:03:01.6]} 5... c6 {[%clk 0:02:58]} 6. Qc2 {[%clk 0:03:01.1]} 6... Bd6 {[%clk
0:02:58.2]} 7. Bg5 {[%clk 0:02:57.9]} 7... h6 {[%clk 0:02:58.3]} 8. Bh4 {[%clk
0:02:57.8]} 8... O-O {[%clk 0:02:58.5]} 9. e3 {[%clk 0:02:57.5]} 9... Re8 {[%clk
0:02:58.1]} 10. Bd3 {[%clk 0:02:57.5]} 10... Nbd7 {[%clk 0:02:58.4]} 11. Nf3
{[%clk 0:02:53.7]} 11... Nf8 {[%clk 0:02:52.6]} 12. O-O {[%clk 0:02:52.5]} 12...
Bg4 {[%clk 0:02:52.5]} 13. Nd2 {[%clk 0:02:48.1]} 13... Bh5 {[%clk 0:02:51.7]}
14. Rae1 {[%clk 0:02:30.9]} 14... Bg6 {[%clk 0:02:50.1]} 15. e4 {[%clk
0:02:20.3]} 15... dxe4 {[%clk 0:02:46.5]} 16. Ndxe4 {[%clk 0:02:20.5]} 16... Be7
{[%clk 0:02:27.4]} 17. Nxf6+ {[%clk 0:02:16.3]} 17... Bxf6 {[%clk 0:02:27.7]}
18. Rxe8 {[%clk 0:02:16.6]} 18... Qxe8 {[%clk 0:02:28.3]} 19. Bxf6 {[%clk
0:02:16.9]} 19... gxf6 {[%clk 0:02:29.2]} 20. Qd2 {[%clk 0:02:02.3]} 20... Kg7
{[%clk 0:02:28.2]} 21. Re1 {[%clk 0:01:58.1]} 21... Qd7 {[%clk 0:02:25.2]} 22.
Bc4 {[%clk 0:01:36.6]} 22... Rd8 {[%clk 0:02:18.9]} 23. d5 {[%clk 0:01:36.6]}
23... cxd5 {[%clk 0:02:18.6]} 24. Nxd5 {[%clk 0:01:27.9]} 24... Re8 {[%clk
0:02:14.4]} 25. Rd1 {[%clk 0:01:00.5]} 25... Qd6 {[%clk 0:02:07.6]} 26. h3
{[%clk 0:00:55.2]} 26... Qe5 {[%clk 0:01:55.6]} 27. Nf4 {[%clk 0:00:52.2]} 27...
b5 {[%clk 0:01:46.6]} 28. Bf1 {[%clk 0:00:50.3]} 28... a5 {[%clk 0:01:33.7]} 29.
b4 {[%clk 0:00:41.3]} 29... axb4 {[%clk 0:01:31.7]} 30. Qxb4 {[%clk 0:00:41.4]}
30... Qf5 {[%clk 0:01:12.3]} 31. Rd5 {[%clk 0:00:28.3]} 31... Re5 {[%clk
0:00:55.9]} 32. Rxe5 {[%clk 0:00:27.8]} 32... fxe5 {[%clk 0:00:56.8]} 33. Nxg6
{[%clk 0:00:23.8]} 33... Nxg6 {[%clk 0:00:57]} 34. Qxb5 {[%clk 0:00:24.3]} 34...
Nf4 {[%clk 0:00:53.7]} 35. a4 {[%clk 0:00:22.4]} 35... Qg5 {[%clk 0:00:53.4]}
36. g3 {[%clk 0:00:22.2]} 36... Ne6 {[%clk 0:00:49.5]} 37. a5 {[%clk 0:00:18.6]}
37... Nd4 {[%clk 0:00:49.7]} 38. Qd3 {[%clk 0:00:18.6]} 38... Qf6 {[%clk
0:00:45.8]} 39. Qe4 {[%clk 0:00:13.8]} 39... Nf3+ {[%clk 0:00:43.2]} 40. Kg2
{[%clk 0:00:14.1]} 40... Ng5 {[%clk 0:00:43.6]} 41. Qd5 {[%clk 0:00:13]} 41...
e4 {[%clk 0:00:24.1]} 42. h4 {[%clk 0:00:07.6]} 42... Qf3+ {[%clk 0:00:19.8]}
43. Kg1 {[%clk 0:00:08.3]} 43... Ne6 {[%clk 0:00:20.5]} 44. a6 {[%clk
0:00:07.7]} 44... Qa3 {[%clk 0:00:12.6]} 45. Qxe4 {[%clk 0:00:07.5]} 45... Nc5
{[%clk 0:00:13]} 46. Qe3 {[%clk 0:00:06.9]} 46... Qa5 {[%clk 0:00:10.6]} 47.
Qd4+ {[%clk 0:00:07]} 47... f6 {[%clk 0:00:09.4]} 48. Qg4+ {[%clk 0:00:07.1]}
48... Kf8 {[%clk 0:00:08.3]} 49. Qc4 {[%clk 0:00:06.5]} 49... Kg7 {[%clk
0:00:07.3]} 50. Qb5 {[%clk 0:00:06.8]} 50... Qc7 {[%clk 0:00:07.2]} 51. Qb4
{[%clk 0:00:04.9]} 51... Qa7 {[%clk 0:00:05.1]} 52. Qg4+ {[%clk 0:00:05.5]}
52... Kf8 {[%clk 0:00:04.9]} 53. Qg6 {[%clk 0:00:05.9]} 53... Qb6 {[%clk
0:00:03.2]} 54. Qxh6+ {[%clk 0:00:06.2]} 54... Ke7 {[%clk 0:00:03.7]} 55. a7
{[%clk 0:00:06.2]} 55... Ne4 {[%clk 0:00:02.9]} 56. Qe3 {[%clk 0:00:05.5]} 56...
Qxe3 {[%clk 0:00:02.2]} 57. fxe3 {[%clk 0:00:06.4]} 1-0

[Event "Early-Titled-Tuesday-Blitz-October-17-2023"]
[Site "Chess.com"]
[Date "2023.10.17"]
[Round "2"]
[White "eightbyeightchess"]
[Black "familijatop71"]
[Result "1-0"]
[WhiteElo "2438"]
[BlackElo "2125"]
[TimeControl "180+1"]
[EndTime "8:20:18 PDT"]
[Termination "eightbyeightchess won on time"]

1. e4 {[%clk 0:02:36.9]} 1... d5 {[%clk 0:02:59.7]} 2. exd5 {[%clk 0:02:37.1]}
2... Qxd5 {[%clk 0:03:00.6]} 3. d4 {[%clk 0:02:36.6]} 3... Nc6 {[%clk
0:02:58.8]} 4. Nf3 {[%clk 0:02:31]} 4... e5 {[%clk 0:02:59]} 5. Nc3 {[%clk
0:02:29.8]} 5... Bb4 {[%clk 0:02:56.7]} 6. dxe5 {[%clk 0:02:24.4]} 6... Qxd1+
{[%clk 0:02:46.3]} 7. Kxd1 {[%clk 0:02:25.3]} 7... Bxc3 {[%clk 0:02:41.9]} 8.
bxc3 {[%clk 0:02:26.2]} 8... Bg4 {[%clk 0:02:41.4]} 9. Bf4 {[%clk 0:02:23.5]}
9... O-O-O+ {[%clk 0:02:40.4]} 10. Kc1 {[%clk 0:02:23.6]} 10... Nge7 {[%clk
0:02:36.3]} 11. Bg5 {[%clk 0:01:59.2]} 11... h6 {[%clk 0:02:18.1]} 12. Bxe7
{[%clk 0:01:58.8]} 12... Nxe7 {[%clk 0:02:17.7]} 13. h3 {[%clk 0:01:50.3]} 13...
Bxf3 {[%clk 0:02:11.8]} 14. gxf3 {[%clk 0:01:51.2]} 14... Ng6 {[%clk 0:02:11.2]}
15. f4 {[%clk 0:01:33.9]} 15... Nxf4 {[%clk 0:02:07.6]} 16. Rg1 {[%clk
0:01:33.4]} 16... g6 {[%clk 0:01:57.2]} 17. Rg4 {[%clk 0:01:23.1]} 17... Nd5
{[%clk 0:01:44.8]} 18. Bc4 {[%clk 0:01:08.1]} 18... Nxc3 {[%clk 0:01:14.1]} 19.
Bxf7 {[%clk 0:01:07.1]} 19... g5 {[%clk 0:00:54.4]} 20. Rc4 {[%clk 0:00:55.2]}
20... Ne2+ {[%clk 0:00:47.5]} 21. Kb2 {[%clk 0:00:54.5]} 21... Nf4 {[%clk
0:00:44.5]} 22. e6 {[%clk 0:00:47.6]} 22... Nxh3 {[%clk 0:00:38]} 23. e7 {[%clk
0:00:45.8]} 23... Rde8 {[%clk 0:00:34]} 24. Be6+ {[%clk 0:00:21.6]} 24... Kb8
{[%clk 0:00:33.7]} 25. Bxh3 {[%clk 0:00:22.5]} 25... Rxe7 {[%clk 0:00:33.4]} 26.
f4 {[%clk 0:00:19.4]} 26... Re3 {[%clk 0:00:29.7]} 27. Bg2 {[%clk 0:00:11.9]}
27... g4 {[%clk 0:00:27.5]} 28. f5 {[%clk 0:00:11]} 28... h5 {[%clk 0:00:27.6]}
29. f6 {[%clk 0:00:10.3]} 29... Rf8 {[%clk 0:00:27.9]} 30. Rh1 {[%clk
0:00:10.1]} 30... Re5 {[%clk 0:00:23.6]} 31. Rf4 {[%clk 0:00:10.4]} 31... c6
{[%clk 0:00:19.3]} 32. f7 {[%clk 0:00:10.5]} 32... Kc7 {[%clk 0:00:19]} 33. Bf1
{[%clk 0:00:10.6]} 33... Rg5 {[%clk 0:00:18.2]} 34. Bc4 {[%clk 0:00:10.6]} 34...
g3 {[%clk 0:00:17.9]} 35. Rg1 {[%clk 0:00:08.9]} 35... b5 {[%clk 0:00:15.8]} 36.
Bb3 {[%clk 0:00:09]} 36... a5 {[%clk 0:00:15]} 37. a4 {[%clk 0:00:09]} 37... Kb6
{[%clk 0:00:15.1]} 38. axb5 {[%clk 0:00:09.3]} 38... cxb5 {[%clk 0:00:15.3]} 39.
Rf6+ {[%clk 0:00:09.6]} 39... Kc5 {[%clk 0:00:14.6]} 40. Rf4 {[%clk 0:00:09.5]}
40... a4 {[%clk 0:00:14.3]} 41. Be6 {[%clk 0:00:09.6]} 41... b4 {[%clk
0:00:10.1]} 42. Rf5+ {[%clk 0:00:09.8]} 42... Rxf5 {[%clk 0:00:09.7]} 43. Bxf5
{[%clk 0:00:10.7]} 43... Rxf7 {[%clk 0:00:10]} 44. Bg6 {[%clk 0:00:11.4]} 44...
Rf3 {[%clk 0:00:07.5]} 45. Bxh5 {[%clk 0:00:11.5]} 45... a3+ {[%clk 0:00:07.8]}
46. Ka2 {[%clk 0:00:11.4]} 46... Re3 {[%clk 0:00:08.3]} 47. Bd1 {[%clk
0:00:11.8]} 47... Kd4 {[%clk 0:00:08.6]} 48. Rg2 {[%clk 0:00:12.1]} 48... Kc3
{[%clk 0:00:08.8]} 49. Rg1 {[%clk 0:00:11.8]} 49... Kc4 {[%clk 0:00:07.4]} 50.
Kb1 {[%clk 0:00:11.7]} 50... Kc3 {[%clk 0:00:07.9]} 51. Bh5 {[%clk 0:00:11.8]}
51... b3 {[%clk 0:00:07.6]} 52. cxb3 {[%clk 0:00:11.8]} 52... Kxb3 {[%clk
0:00:08.2]} 53. Bf7+ {[%clk 0:00:12.5]} 53... Kb4 {[%clk 0:00:08.7]} 54. Bd5
{[%clk 0:00:11.6]} 54... Rd3 {[%clk 0:00:08.4]} 55. Be4 {[%clk 0:00:11.8]} 55...
Re3 {[%clk 0:00:08.3]} 56. Bc2 {[%clk 0:00:12.4]} 56... Kc3 {[%clk 0:00:08.7]}
57. Bd1 {[%clk 0:00:12.3]} 57... Rd3 {[%clk 0:00:08.4]} 58. Bh5 {[%clk
0:00:12.2]} 58... Re3 {[%clk 0:00:08.4]} 59. Ka2 {[%clk 0:00:12.5]} 59... Kb4
{[%clk 0:00:07.6]} 60. Rg2 {[%clk 0:00:12.8]} 60... Rc3 {[%clk 0:00:07.3]} 61.
Bd1 {[%clk 0:00:13.2]} 61... Re3 {[%clk 0:00:07.3]} 62. Bh5 {[%clk 0:00:13]}
62... Rc3 {[%clk 0:00:07.6]} 63. Bf7 {[%clk 0:00:13.5]} 63... Re3 {[%clk
0:00:07.8]} 64. Bd5 {[%clk 0:00:13.8]} 64... Rd3 {[%clk 0:00:07.5]} 65. Ba8
{[%clk 0:00:13.7]} 65... Re3 {[%clk 0:00:07.3]} 66. Rc2 {[%clk 0:00:13.5]} 66...
Rc3 {[%clk 0:00:06.6]} 67. Rd2 {[%clk 0:00:13.5]} 67... Rb3 {[%clk 0:00:06.6]}
68. Rd4+ {[%clk 0:00:12.4]} 68... Kc3 {[%clk 0:00:06.9]} 69. Rg4 {[%clk
0:00:12.5]} 69... Kd2 {[%clk 0:00:05.3]} 70. Kxb3 {[%clk 0:00:12.4]} 1-0

[Event "Early-Titled-Tuesday-Blitz-October-17-2023"]
[Site "Chess.com"]
[Date "2023.10.17"]
[Round "2"]
[White "profedechess93"]
[Black "Cayse"]
[Result "0-1"]
[WhiteElo "2606"]
[BlackElo "2894"]
[TimeControl "180+1"]
[EndTime "8:20:20 PDT"]
[Termination "Cayse won by resignation"]

1. e4 {[%clk 0:03:00.9]} 1... e5 {[%clk 0:02:59.7]} 2. Nf3 {[%clk 0:02:52.5]}
2... Nc6 {[%clk 0:02:59.3]} 3. Bc4 {[%clk 0:02:49.2]} 3... Nf6 {[%clk
0:02:58.4]} 4. d3 {[%clk 0:02:49.4]} 4... Bc5 {[%clk 0:02:58.4]} 5. c3 {[%clk
0:02:50]} 5... O-O {[%clk 0:02:58.4]} 6. Bb3 {[%clk 0:02:50.6]} 6... d5 {[%clk
0:02:56.7]} 7. Qe2 {[%clk 0:02:50.8]} 7... Re8 {[%clk 0:02:49.7]} 8. Bg5 {[%clk
0:02:47.1]} 8... dxe4 {[%clk 0:02:42.3]} 9. dxe4 {[%clk 0:02:48]} 9... h6 {[%clk
0:02:42.3]} 10. Bh4 {[%clk 0:02:44.2]} 10... Qd6 {[%clk 0:02:18.4]} 11. Nbd2
{[%clk 0:02:42.3]} 11... Nh5 {[%clk 0:02:15]} 12. Nc4 {[%clk 0:02:21.3]} 12...
Qg6 {[%clk 0:02:13.4]} 13. O-O-O {[%clk 0:02:05]} 13... Nf4 {[%clk 0:02:10.7]}
14. Qc2 {[%clk 0:02:03.2]} 14... Qxg2 {[%clk 0:02:03.2]} 15. Nfd2 {[%clk
0:01:52.9]} 15... Bg4 {[%clk 0:01:56.2]} 16. Rde1 {[%clk 0:01:26.5]} 16... Bxf2
{[%clk 0:01:28.3]} 17. Bxf2 {[%clk 0:01:24.9]} 17... Qxf2 {[%clk 0:01:28]} 18.
Kb1 {[%clk 0:01:24.5]} 18... Be2 {[%clk 0:01:25.1]} 19. Ka1 {[%clk 0:01:17.3]}
19... Bxc4 {[%clk 0:01:05.9]} 20. Bxc4 {[%clk 0:01:15]} 20... Rad8 {[%clk
0:01:06]} 21. Rd1 {[%clk 0:01:13.2]} 21... Na5 {[%clk 0:01:05.9]} 22. Rhf1
{[%clk 0:00:34.7]} 22... Qxh2 {[%clk 0:01:04.1]} 23. Qc1 {[%clk 0:00:30.7]}
23... Nxc4 {[%clk 0:00:58]} 24. Nxc4 {[%clk 0:00:31.6]} 24... Qh5 {[%clk
0:00:42.8]} 25. Rxd8 {[%clk 0:00:20.7]} 25... Rxd8 {[%clk 0:00:42.4]} 26. a3
{[%clk 0:00:14.8]} 26... b5 {[%clk 0:00:33]} 27. Nxe5 {[%clk 0:00:14.1]} 27...
Qxe5 {[%clk 0:00:32.5]} 28. Rxf4 {[%clk 0:00:13.5]} 28... g6 {[%clk 0:00:29.2]}
29. Rh4 {[%clk 0:00:12.2]} 29... h5 {[%clk 0:00:29]} 30. Qe1 {[%clk 0:00:10.2]}
30... Rd3 {[%clk 0:00:23.1]} 31. Rh1 {[%clk 0:00:08.8]} 31... c5 {[%clk
0:00:20.4]} 32. Rf1 {[%clk 0:00:09]} 32... Qe6 {[%clk 0:00:17.4]} 33. Qf2 {[%clk
0:00:08.5]} 33... c4 {[%clk 0:00:17.2]} 34. Qxa7 {[%clk 0:00:08.2]} 34... h4
{[%clk 0:00:16.4]} 35. Qb8+ {[%clk 0:00:08.5]} 35... Kg7 {[%clk 0:00:16.3]} 36.
Qxb5 {[%clk 0:00:09.3]} 36... h3 {[%clk 0:00:15.9]} 37. Qg5 {[%clk 0:00:08.6]}
37... h2 {[%clk 0:00:13.1]} 38. Qh4 {[%clk 0:00:08.6]} 38... Rh3 {[%clk
0:00:13]} 39. Qe1 {[%clk 0:00:07.4]} 39... Qe5 {[%clk 0:00:11]} 40. Qf2 {[%clk
0:00:06.5]} 40... Qe7 {[%clk 0:00:10.4]} 41. Qd4+ {[%clk 0:00:05.3]} 41... Kh7
{[%clk 0:00:09.6]} 42. Qd1 {[%clk 0:00:04.9]} 42... Kg8 {[%clk 0:00:06.9]} 43.
e5 {[%clk 0:00:04.4]} 43... Qxe5 {[%clk 0:00:06.8]} 44. Qd8+ {[%clk 0:00:04.5]}
44... Kg7 {[%clk 0:00:06.9]} 45. Qd1 {[%clk 0:00:04.3]} 45... Qe6 {[%clk
0:00:05.9]} 46. Rh1 {[%clk 0:00:03.7]} 46... Kh7 {[%clk 0:00:05.6]} 47. Ka2
{[%clk 0:00:04.2]} 47... Qe5 {[%clk 0:00:04.6]} 48. Qf1 {[%clk 0:00:04.2]} 48...
Rh4 {[%clk 0:00:04.2]} 49. Qxf7+ {[%clk 0:00:04.2]} 49... Kh6 {[%clk 0:00:04.1]}
50. Qf2 {[%clk 0:00:04.1]} 50... Qe4 {[%clk 0:00:04.1]} 51. Qf1 {[%clk 0:00:03]}
51... g5 {[%clk 0:00:03.8]} 52. Qc1 {[%clk 0:00:03.3]} 52... Rh3 {[%clk
0:00:03.4]} 53. Qd1 {[%clk 0:00:03.7]} 53... Kg6 {[%clk 0:00:03.2]} 54. Qd6+
{[%clk 0:00:04.2]} 54... Kh5 {[%clk 0:00:03.6]} 55. Rd1 {[%clk 0:00:02.7]} 55...
h1=Q {[%clk 0:00:03]} 56. Qf8 {[%clk 0:00:02.8]} 56... Qxd1 {[%clk 0:00:01.9]}
57. Qh8+ {[%clk 0:00:03.7]} 57... Kg4 {[%clk 0:00:02.3]} 58. Qg8 {[%clk
0:00:04.6]} 58... Kg3 {[%clk 0:00:02.9]} 59. Qxg5+ {[%clk 0:00:04.6]} 59... Kh2
{[%clk 0:00:03.6]} 60. Qd2+ {[%clk 0:00:04.1]} 60... Qxd2 {[%clk 0:00:03.5]} 61.
Ka1 {[%clk 0:00:04.3]} 61... Qee1+ {[%clk 0:00:03.7]} 62. Ka2 {[%clk 0:00:05.2]}
62... Qxb2+ {[%clk 0:00:04.3]} 63. Kxb2 {[%clk 0:00:05.6]} 63... Qxc3+ {[%clk
0:00:05.1]} 64. Kb1 {[%clk 0:00:05.5]} 64... Qb3+ {[%clk 0:00:05.4]} 65. Ka1
{[%clk 0:00:06.4]} 65... Qxa3+ {[%clk 0:00:05.9]} 0-1

[Event "Early-Titled-Tuesday-Blitz-October-17-2023"]
[Site "Chess.com"]
[Date "2023.10.17"]
[Round "2"]
[White "Sl4werThanYou"]
[Black "CADMartin"]
[Result "0-1"]
[WhiteElo "2646"]
[BlackElo "2482"]
[TimeControl "180+1"]
[EndTime "8:20:24 PDT"]
[Termination "CADMartin won by checkmate"]

1. e4 {[%clk 0:03:00.1]} 1... e5 {[%clk 0:02:59.2]} 2. Nf3 {[%clk 0:02:53.4]}
2... Nc6 {[%clk 0:02:58.7]} 3. Nc3 {[%clk 0:02:50.8]} 3... Nf6 {[%clk
0:02:53.6]} 4. h3 {[%clk 0:02:43.3]} 4... Bb4 {[%clk 0:02:47.3]} 5. Bd3 {[%clk
0:02:41.3]} 5... d6 {[%clk 0:02:47]} 6. a3 {[%clk 0:02:40.2]} 6... Ba5 {[%clk
0:02:46.1]} 7. Na2 {[%clk 0:02:28.9]} 7... h6 {[%clk 0:02:44.4]} 8. b4 {[%clk
0:02:19.5]} 8... Bb6 {[%clk 0:02:44.3]} 9. c4 {[%clk 0:02:20.2]} 9... a5 {[%clk
0:02:43]} 10. Bb2 {[%clk 0:02:18.8]} 10... Be6 {[%clk 0:02:34.6]} 11. Qb3 {[%clk
0:02:12.5]} 11... Nh5 {[%clk 0:02:24.9]} 12. b5 {[%clk 0:02:00.6]} 12... Ne7
{[%clk 0:02:22.6]} 13. g3 {[%clk 0:01:56.4]} 13... Nc8 {[%clk 0:02:18.4]} 14.
Be2 {[%clk 0:01:53.9]} 14... Nf6 {[%clk 0:02:13]} 15. Nc3 {[%clk 0:01:51.7]}
15... Qd7 {[%clk 0:02:12.1]} 16. g4 {[%clk 0:01:49.4]} 16... Bd4 {[%clk
0:02:11.4]} 17. d3 {[%clk 0:01:46.5]} 17... h5 {[%clk 0:02:04.6]} 18. g5 {[%clk
0:01:32]} 18... Bxc3+ {[%clk 0:02:01]} 19. Qxc3 {[%clk 0:01:31.3]} 19... Ng8
{[%clk 0:02:00.8]} 20. h4 {[%clk 0:01:30.1]} 20... Nge7 {[%clk 0:01:58.1]} 21.
d4 {[%clk 0:01:29.7]} 21... exd4 {[%clk 0:01:58.4]} 22. Qxd4 {[%clk 0:01:27]}
22... Rg8 {[%clk 0:01:58]} 23. O-O-O {[%clk 0:01:25.3]} 23... Nb6 {[%clk
0:01:57.8]} 24. c5 {[%clk 0:01:21.9]} 24... Nbc8 {[%clk 0:01:46.8]} 25. e5
{[%clk 0:01:17.9]} 25... d5 {[%clk 0:01:45.4]} 26. Kb1 {[%clk 0:01:16.8]} 26...
c6 {[%clk 0:01:44.8]} 27. b6 {[%clk 0:01:16.7]} 27... g6 {[%clk 0:01:39.3]} 28.
Ka1 {[%clk 0:01:16]} 28... Nf5 {[%clk 0:01:38.7]} 29. Qf4 {[%clk 0:01:15.8]}
29... Ng7 {[%clk 0:01:38.6]} 30. Nd2 {[%clk 0:01:15.7]} 30... Bf5 {[%clk
0:01:37.6]} 31. Nc4 {[%clk 0:01:15.5]} 31... Ne6 {[%clk 0:01:37]} 32. Qe3 {[%clk
0:01:12.3]} 32... Kf8 {[%clk 0:01:34.3]} 33. Nd6 {[%clk 0:01:12]} 33... Nxd6
{[%clk 0:01:33.1]} 34. exd6 {[%clk 0:01:09.6]} 34... a4 {[%clk 0:01:33.5]} 35.
Rhe1 {[%clk 0:01:03.4]} 35... Ra5 {[%clk 0:01:33.2]} 36. Rc1 {[%clk 0:01:03.8]}
36... Ke8 {[%clk 0:01:23.7]} 37. Bf6 {[%clk 0:00:53.9]} 37... Qc8 {[%clk
0:01:19.8]} 38. Rc3 {[%clk 0:00:50.1]} 38... Kd7 {[%clk 0:01:19.5]} 39. Rec1
{[%clk 0:00:49.8]} 39... Re8 {[%clk 0:01:19.1]} 40. Qd2 {[%clk 0:00:48.9]} 40...
Qa8 {[%clk 0:01:16.6]} 41. Be7 {[%clk 0:00:49.1]} 41... Rxe7 {[%clk 0:01:08.7]}
42. dxe7 {[%clk 0:00:50]} 42... Kxe7 {[%clk 0:01:09.6]} 43. Bd3 {[%clk
0:00:47.1]} 43... Bxd3 {[%clk 0:01:02.6]} 44. Qxd3 {[%clk 0:00:48]} 44... Rb5
{[%clk 0:01:00.5]} 45. Qf3 {[%clk 0:00:40.9]} 45... Qh8 {[%clk 0:00:53.8]} 46.
Ka2 {[%clk 0:00:37.5]} 46... Qd4 {[%clk 0:00:52.1]} 47. R1c2 {[%clk 0:00:34.1]}
47... Qg7 {[%clk 0:00:42.3]} 48. Rb2 {[%clk 0:00:19]} 48... Rxb2+ {[%clk
0:00:41.4]} 49. Kxb2 {[%clk 0:00:19.9]} 49... Qd4 {[%clk 0:00:41.4]} 50. Kc1
{[%clk 0:00:10.7]} 50... Kf8 {[%clk 0:00:39.6]} 51. Qe3 {[%clk 0:00:08.9]} 51...
Qxh4 {[%clk 0:00:37.1]} 52. Qe5 {[%clk 0:00:08.2]} 52... Qxg5+ {[%clk
0:00:36.5]} 53. Qxg5 {[%clk 0:00:08.7]} 53... Nxg5 {[%clk 0:00:37.4]} 54. Rd3
{[%clk 0:00:06]} 54... Ne4 {[%clk 0:00:37.3]} 55. Rd4 {[%clk 0:00:03.5]} 55...
Nxc5 {[%clk 0:00:37.6]} 56. Kc2 {[%clk 0:00:03.7]} 56... Ke7 {[%clk 0:00:37.5]}
57. Kc3 {[%clk 0:00:04.2]} 57... Kd6 {[%clk 0:00:37.3]} 58. Rf4 {[%clk
0:00:03.7]} 58... f5 {[%clk 0:00:36.4]} 59. Rh4 {[%clk 0:00:02.6]} 59... Ne4+
{[%clk 0:00:35.9]} 60. Kb4 {[%clk 0:00:03]} 60... Nxf2 {[%clk 0:00:32.8]} 61.
Kxa4 {[%clk 0:00:03.4]} 61... Ng4 {[%clk 0:00:33.4]} 62. Kb4 {[%clk 0:00:03.2]}
62... f4 {[%clk 0:00:34]} 63. a4 {[%clk 0:00:03.4]} 63... f3 {[%clk 0:00:34]}
64. Rh3 {[%clk 0:00:03.8]} 64... Ne5 {[%clk 0:00:29.6]} 65. Rh2 {[%clk
0:00:01.5]} 65... f2 {[%clk 0:00:25]} 66. Rh1 {[%clk 0:00:02]} 66... g5 {[%clk
0:00:25.3]} 67. a5 {[%clk 0:00:02.2]} 67... g4 {[%clk 0:00:21.5]} 68. a6 {[%clk
0:00:01.5]} 68... bxa6 {[%clk 0:00:22]} 69. b7 {[%clk 0:00:01.1]} 69... Kc7
{[%clk 0:00:21.9]} 70. Kc5 {[%clk 0:00:01.3]} 70... g3 {[%clk 0:00:21.4]} 71.
Rxh5 {[%clk 0:00:01.1]} 71... Nd7+ {[%clk 0:00:21.4]} 72. Kd4 {[%clk 0:00:01.2]}
72... f1=Q {[%clk 0:00:21.5]} 73. Rh4 {[%clk 0:00:01.1]} 73... Qc4+ {[%clk
0:00:21.6]} 74. Ke3 {[%clk 0:00:01.2]} 74... Qxh4 {[%clk 0:00:22.3]} 75. Kf3
{[%clk 0:00:02]} 75... Ne5+ {[%clk 0:00:21.7]} 76. Kg2 {[%clk 0:00:02.9]} 76...
Qh2+ {[%clk 0:00:22]} 77. Kf1 {[%clk 0:00:03.4]} 77... Qf2# {[%clk 0:00:22.7]}
0-1